[Event "Titled Tuesday Blitz May 2 Early 2023"]
[White "Vargas Rodriguez, Wilver"]
[Black "Zaichenko, Daria"]
[WhiteFideId "3509672"]
[BlackFideId "4197453"]
[WhiteElo "2224"]
[BlackElo "2039"]
[Result "0-1"]
[Round "04"]
[TimeControl "180+2"]
[Date "2023.05.02"]
[WhiteClock "0:00:10"]
[BlackClock "0:00:44"]

1. e4 {[%clk 0:03:00]}  c5 {[%clk 0:02:59]} 2. Nf3 {[%clk 0:03:00]}  Nc6 {[%clk 0:02:59]} 3. b3 {[%clk 0:02:59]}  Nf6 {[%clk 0:02:56]} 4. Nc3 {[%clk 0:02:42]}  d5 {[%clk 0:02:51]} 5. exd5 {[%clk 0:02:40]}  Nxd5 {[%clk 0:02:50]} 6. Bb2 {[%clk 0:02:39]}  a6 {[%clk 0:02:46]} 7. Nxd5 {[%clk 0:01:37]}  Qxd5 {[%clk 0:02:45]} 8. c4 {[%clk 0:00:53]}  Qe4+ {[%clk 0:02:38]} 9. Be2 {[%clk 0:00:53]}  e5 {[%clk 0:02:35]} 10. d3 {[%clk 0:00:51]}  Qg6 {[%clk 0:02:30]} 11. O-O {[%clk 0:00:51]}  Bd6 {[%clk 0:02:30]} 12. Re1 {[%clk 0:00:49]}  O-O {[%clk 0:02:29]} 13. a3 {[%clk 0:00:48]}  Bh3 {[%clk 0:02:08]} 14. g3 {[%clk 0:00:47]}  f5 {[%clk 0:02:04]} 15. Nh4 {[%clk 0:00:46]}  Qh6 {[%clk 0:01:53]} 16. Bf3 {[%clk 0:00:46]}  g5 {[%clk 0:01:46]} 17. Bd5+ {[%clk 0:00:44]}  Kh8 {[%clk 0:01:43]} 18. Qd2 {[%clk 0:00:41]}  f4 {[%clk 0:01:33]} 19. Ng2 {[%clk 0:00:31]}  Nd4 {[%clk 0:01:28]} 20. Bxd4 {[%clk 0:00:28]}  cxd4 {[%clk 0:01:23]} 21. Re4 {[%clk 0:00:22]}  Rf6 {[%clk 0:01:12]} 22. c5 {[%clk 0:00:21]}  Bxg2 {[%clk 0:01:09]} 23. Kxg2 {[%clk 0:00:20]}  f3+ {[%clk 0:01:09]} 24. Kf1 {[%clk 0:00:18]}  Qxh2 {[%clk 0:01:08]} 25. Rh4 {[%clk 0:00:15]}  gxh4 {[%clk 0:01:08]} 26. Bxf3 {[%clk 0:00:15]}  Rxf3 {[%clk 0:01:04]} 27. cxd6 {[%clk 0:00:15]}  hxg3 {[%clk 0:01:04]} 28. Ra2 {[%clk 0:00:12]}  g2+ {[%clk 0:00:52]} 29. Ke2 {[%clk 0:00:12]}  Rxf2+ {[%clk 0:00:47]} 30. Kxf2 {[%clk 0:00:13]}  g1=Q+ {[%clk 0:00:47]} 31. Kf3 {[%clk 0:00:13]}  Qxd2 {[%clk 0:00:43]} 32. Rxd2 {[%clk 0:00:12]}  Qf1+ {[%clk 0:00:43]} 33. Ke4 {[%clk 0:00:11]}  Qe1+ {[%clk 0:00:43]} 34. Re2 {[%clk 0:00:10]}  Qxe2+ {[%clk 0:00:44]} 0-1


[Site "https://www.chess.com"]

[Event "Titled Tuesday Blitz May 2 Early 2023"]
[White "Sailer, Mike"]
[Black "Kornyukov, Alexey"]
[WhiteFideId "2012901"]
[BlackFideId "4150457"]
[WhiteElo "2109"]
[BlackElo "2352"]
[Result "1/2-1/2"]
[Round "04"]
[TimeControl "180+2"]
[Date "2023.05.02"]
[WhiteClock "0:00:05"]
[BlackClock "0:00:10"]

1. d4 {[%clk 0:03:00]}  d5 {[%clk 0:02:59]} 2. Bg5 {[%clk 0:02:59]}  Nf6 {[%clk 0:02:58]} 3. Bxf6 {[%clk 0:02:54]}  exf6 {[%clk 0:02:56]} 4. e3 {[%clk 0:02:50]}  Bd6 {[%clk 0:02:55]} 5. c4 {[%clk 0:02:43]}  O-O {[%clk 0:02:53]} 6. cxd5 {[%clk 0:02:39]}  Bb4+ {[%clk 0:02:51]} 7. Nc3 {[%clk 0:02:37]}  Qxd5 {[%clk 0:02:47]} 8. Nf3 {[%clk 0:02:32]}  Bxc3+ {[%clk 0:02:46]} 9. bxc3 {[%clk 0:02:32]}  c5 {[%clk 0:02:45]} 10. Be2 {[%clk 0:02:18]}  Nc6 {[%clk 0:02:43]} 11. O-O {[%clk 0:02:16]}  cxd4 {[%clk 0:02:42]} 12. cxd4 {[%clk 0:02:16]}  Bg4 {[%clk 0:02:42]} 13. h3 {[%clk 0:02:15]}  Bh5 {[%clk 0:02:39]} 14. Qb3 {[%clk 0:02:09]}  Bxf3 {[%clk 0:02:28]} 15. Bxf3 {[%clk 0:02:07]}  Qxb3 {[%clk 0:02:26]} 16. axb3 {[%clk 0:02:08]}  a6 {[%clk 0:02:20]} 17. Bxc6 {[%clk 0:02:06]}  bxc6 {[%clk 0:02:19]} 18. Rfc1 {[%clk 0:02:06]}  Rfc8 {[%clk 0:02:14]} 19. Rc5 {[%clk 0:01:58]}  Rc7 {[%clk 0:02:12]} 20. d5 {[%clk 0:01:49]}  Rac8 {[%clk 0:02:04]} 21. dxc6 {[%clk 0:01:28]}  Rxc6 {[%clk 0:02:02]} 22. Rca5 {[%clk 0:01:07]}  Rb6 {[%clk 0:01:55]} 23. R1a3 {[%clk 0:00:59]}  Ra8 {[%clk 0:01:41]} 24. Kf1 {[%clk 0:00:53]}  Kf8 {[%clk 0:01:22]} 25. Ke2 {[%clk 0:00:46]}  Ke7 {[%clk 0:01:22]} 26. Kd3 {[%clk 0:00:43]}  Kd6 {[%clk 0:01:20]} 27. Kc3 {[%clk 0:00:39]}  Rc6+ {[%clk 0:01:14]} 28. Kd2 {[%clk 0:00:33]}  Rb6 {[%clk 0:01:11]} 29. Kc2 {[%clk 0:00:32]}  g6 {[%clk 0:01:00]} 30. R3a4 {[%clk 0:00:27]}  Rc6+ {[%clk 0:00:57]} 31. Kb2 {[%clk 0:00:27]}  Kc7 {[%clk 0:00:49]} 32. Rd4 {[%clk 0:00:22]}  Kb6 {[%clk 0:00:46]} 33. Rad5 {[%clk 0:00:21]}  Rac8 {[%clk 0:00:44]} 34. Rd2 {[%clk 0:00:21]}  R8c7 {[%clk 0:00:41]} 35. Rd8 {[%clk 0:00:21]}  Rc8 {[%clk 0:00:38]} 36. R8d7 {[%clk 0:00:20]}  R8c7 {[%clk 0:00:38]} 37. R7d5 {[%clk 0:00:20]}  a5 {[%clk 0:00:37]} 38. g4 {[%clk 0:00:18]}  Rc5 {[%clk 0:00:35]} 39. Rd6+ {[%clk 0:00:17]}  R7c6 {[%clk 0:00:34]} 40. Rd8 {[%clk 0:00:18]}  Kb7 {[%clk 0:00:29]} 41. R2d7+ {[%clk 0:00:14]}  Rc7 {[%clk 0:00:28]} 42. Rxc7+ {[%clk 0:00:14]}  Rxc7 {[%clk 0:00:28]} 43. Rh8 {[%clk 0:00:14]}  Rd7 {[%clk 0:00:26]} 44. Kc2 {[%clk 0:00:14]}  Kc6 {[%clk 0:00:23]} 45. Rxh7 {[%clk 0:00:14]}  Kd5 {[%clk 0:00:21]} 46. f3 {[%clk 0:00:12]}  Kc5 {[%clk 0:00:20]} 47. Rh8 {[%clk 0:00:13]}  Kb4 {[%clk 0:00:20]} 48. Rb8+ {[%clk 0:00:11]}  Ka3 {[%clk 0:00:20]} 49. Kc3 {[%clk 0:00:08]}  Rc7+ {[%clk 0:00:20]} 50. Kd3 {[%clk 0:00:08]}  Rd7+ {[%clk 0:00:19]} 51. Ke4 {[%clk 0:00:08]}  Rc7 {[%clk 0:00:18]} 52. Rb6 {[%clk 0:00:08]}  Rc3 {[%clk 0:00:17]} 53. Rxf6 {[%clk 0:00:07]}  Kxb3 {[%clk 0:00:16]} 54. Rxf7 {[%clk 0:00:07]}  a4 {[%clk 0:00:16]} 55. Rb7+ {[%clk 0:00:07]}  Kc2 {[%clk 0:00:15]} 56. h4 {[%clk 0:00:07]}  a3 {[%clk 0:00:15]} 57. Ra7 {[%clk 0:00:08]}  Rc4+ {[%clk 0:00:13]} 58. Ke5 {[%clk 0:00:06]}  Kb3 {[%clk 0:00:14]} 59. Kf6 {[%clk 0:00:06]}  Ra4 {[%clk 0:00:13]} 60. Rb7+ {[%clk 0:00:06]}  Rb4 {[%clk 0:00:13]} 61. Ra7 {[%clk 0:00:06]}  Ra4 {[%clk 0:00:12]} 62. Rd7 {[%clk 0:00:07]}  a2 {[%clk 0:00:10]} 63. Rd1 {[%clk 0:00:07]}  Kb2 {[%clk 0:00:10]} 64. Kxg6 {[%clk 0:00:06]}  Rc4 {[%clk 0:00:10]} 65. Rd2+ {[%clk 0:00:04]}  Rc2 {[%clk 0:00:09]} 66. Rd1 {[%clk 0:00:05]}  Rc1 {[%clk 0:00:10]} 67. Rd2+ {[%clk 0:00:06]}  Rc2 {[%clk 0:00:10]} 68. Rd1 {[%clk 0:00:06]}  Rc1 {[%clk 0:00:10]} 69. Rd2+ {[%clk 0:00:05]}  Rc2 {[%clk 0:00:10]} 1/2-1/2


[Site "https://www.chess.com"]

[Event "Titled Tuesday Blitz May 2 Early 2023"]
[White "Sanchez, German"]
[Black "Bashirli, Saadat"]
[WhiteFideId "4403959"]
[BlackFideId "13429990"]
[WhiteElo "1816"]
[BlackElo "1408"]
[Result "1-0"]
[Round "04"]
[TimeControl "180+2"]
[Date "2023.05.02"]
[WhiteClock "0:00:12"]
[BlackClock "0:00:24"]

1. e4 {[%clk 0:02:59]}  c6 {[%clk 0:02:53]} 2. d4 {[%clk 0:02:58]}  d5 {[%clk 0:02:53]} 3. exd5 {[%clk 0:02:59]}  cxd5 {[%clk 0:02:54]} 4. c4 {[%clk 0:02:59]}  Nf6 {[%clk 0:02:51]} 5. Nf3 {[%clk 0:03:00]}  Nc6 {[%clk 0:02:50]} 6. Nc3 {[%clk 0:03:01]}  dxc4 {[%clk 0:02:49]} 7. Bxc4 {[%clk 0:03:00]}  e6 {[%clk 0:02:49]} 8. Bg5 {[%clk 0:03:00]}  Be7 {[%clk 0:02:48]} 9. O-O {[%clk 0:03:00]}  O-O {[%clk 0:02:48]} 10. a3 {[%clk 0:02:58]}  Nd5 {[%clk 0:02:49]} 11. Bxe7 {[%clk 0:02:56]}  Ncxe7 {[%clk 0:02:49]} 12. Qd3 {[%clk 0:02:52]}  Nxc3 {[%clk 0:02:47]} 13. bxc3 {[%clk 0:02:52]}  Nd5 {[%clk 0:02:47]} 14. Rae1 {[%clk 0:02:52]}  a6 {[%clk 0:02:37]} 15. Ba2 {[%clk 0:02:52]}  Bd7 {[%clk 0:02:33]} 16. Bb1 {[%clk 0:02:50]}  Nf6 {[%clk 0:02:31]} 17. Ne5 {[%clk 0:02:49]}  Bc6 {[%clk 0:02:29]} 18. f4 {[%clk 0:02:49]}  Qd5 {[%clk 0:02:25]} 19. Rf3 {[%clk 0:02:37]}  Rad8 {[%clk 0:02:08]} 20. Rg3 {[%clk 0:02:35]}  Ne4 {[%clk 0:01:59]} 21. Rxe4 {[%clk 0:02:30]}  Qxe4 {[%clk 0:01:58]} 22. Qxe4 {[%clk 0:02:30]}  Bxe4 {[%clk 0:01:59]} 23. Bxe4 {[%clk 0:02:30]}  b5 {[%clk 0:01:57]} 24. Nc6 {[%clk 0:02:28]}  Rd7 {[%clk 0:01:55]} 25. f5 {[%clk 0:02:24]}  exf5 {[%clk 0:01:53]} 26. Bxf5 {[%clk 0:02:22]}  Rc7 {[%clk 0:01:53]} 27. d5 {[%clk 0:02:16]}  g6 {[%clk 0:01:51]} 28. Be4 {[%clk 0:02:14]}  Re8 {[%clk 0:01:51]} 29. Bf3 {[%clk 0:02:14]}  h5 {[%clk 0:01:49]} 30. Rg5 {[%clk 0:02:10]}  Re1+ {[%clk 0:01:40]} 31. Kf2 {[%clk 0:02:10]}  Re8 {[%clk 0:01:27]} 32. d6 {[%clk 0:02:04]}  Rd7 {[%clk 0:01:26]} 33. Rd5 {[%clk 0:02:02]}  Re6 {[%clk 0:01:24]} 34. Ne7+ {[%clk 0:01:49]}  Kg7 {[%clk 0:01:23]} 35. Nc8 {[%clk 0:01:49]}  f5 {[%clk 0:01:01]} 36. Rd2 {[%clk 0:01:35]}  Kf6 {[%clk 0:00:51]} 37. Bd5 {[%clk 0:01:25]}  Re5 {[%clk 0:00:34]} 38. Bc6 {[%clk 0:01:23]}  Rd8 {[%clk 0:00:34]} 39. d7 {[%clk 0:01:20]}  Rc5 {[%clk 0:00:32]} 40. Rd6+ {[%clk 0:01:12]}  Kf7 {[%clk 0:00:31]} 41. Bd5+ {[%clk 0:01:06]}  Kg7 {[%clk 0:00:29]} 42. Ne7 {[%clk 0:00:39]}  Rc7 {[%clk 0:00:24]} 43. Rxg6+ {[%clk 0:00:26]}  Kh7 {[%clk 0:00:24]} 44. Bg8+ {[%clk 0:00:17]}  Rxg8 {[%clk 0:00:14]} 45. Nxg8 {[%clk 0:00:09]}  Rxd7 {[%clk 0:00:11]} 46. Nf6+ {[%clk 0:00:09]}  Kxg6 {[%clk 0:00:11]} 47. Nxd7 {[%clk 0:00:10]}  Kf7 {[%clk 0:00:10]} 48. Nb8 {[%clk 0:00:11]}  a5 {[%clk 0:00:10]} 49. Nc6 {[%clk 0:00:11]}  Ke6 {[%clk 0:00:07]} 50. Nxa5 {[%clk 0:00:11]}  Kd5 {[%clk 0:00:08]} 51. Ke3 {[%clk 0:00:09]}  h4 {[%clk 0:00:05]} 52. Kd3 {[%clk 0:00:09]}  f4 {[%clk 0:00:05]} 53. h3 {[%clk 0:00:09]}  Kc5 {[%clk 0:00:04]} 54. Nb3+ {[%clk 0:00:09]}  Kd5 {[%clk 0:00:04]} 55. Nd4 {[%clk 0:00:09]}  Kc5 {[%clk 0:00:04]} 56. Ne2 {[%clk 0:00:09]}  Kd5 {[%clk 0:00:04]} 57. Nxf4+ {[%clk 0:00:09]}  Kc5 {[%clk 0:00:05]} 58. Ng6 {[%clk 0:00:10]}  Kb6 {[%clk 0:00:06]} 59. Nxh4 {[%clk 0:00:10]}  Ka5 {[%clk 0:00:07]} 60. Kc2 {[%clk 0:00:10]}  Ka4 {[%clk 0:00:07]} 61. Kb2 {[%clk 0:00:11]}  b4 {[%clk 0:00:08]} 62. axb4 {[%clk 0:00:10]}  Kb5 {[%clk 0:00:09]} 63. g4 {[%clk 0:00:10]}  Kc6 {[%clk 0:00:10]} 64. g5 {[%clk 0:00:11]}  Kd7 {[%clk 0:00:11]} 65. b5 {[%clk 0:00:10]}  Ke7 {[%clk 0:00:12]} 66. b6 {[%clk 0:00:11]}  Kf7 {[%clk 0:00:12]} 67. b7 {[%clk 0:00:11]}  Ke6 {[%clk 0:00:13]} 68. b8=Q {[%clk 0:00:11]}  Kd5 {[%clk 0:00:13]} 69. Qb4 {[%clk 0:00:11]}  Ke5 {[%clk 0:00:13]} 70. Qg4 {[%clk 0:00:12]}  Kd6 {[%clk 0:00:14]} 71. Kb3 {[%clk 0:00:12]}  Ke7 {[%clk 0:00:15]} 72. c4 {[%clk 0:00:13]}  Kd6 {[%clk 0:00:15]} 73. Kb4 {[%clk 0:00:14]}  Ke7 {[%clk 0:00:16]} 74. Kb5 {[%clk 0:00:14]}  Kd6 {[%clk 0:00:17]} 75. Kb6 {[%clk 0:00:14]}  Ke7 {[%clk 0:00:18]} 76. c5 {[%clk 0:00:15]}  Kf7 {[%clk 0:00:19]} 77. c6 {[%clk 0:00:16]}  Kg7 {[%clk 0:00:20]} 78. c7 {[%clk 0:00:16]}  Kf7 {[%clk 0:00:20]} 79. c8=Q {[%clk 0:00:17]}  Ke7 {[%clk 0:00:21]} 80. Qc2 {[%clk 0:00:16]}  Kf7 {[%clk 0:00:22]} 81. Qg6+ {[%clk 0:00:15]}  Ke7 {[%clk 0:00:23]} 82. Qf6+ {[%clk 0:00:13]}  Ke8 {[%clk 0:00:24]} 83. Qge6# {[%clk 0:00:12]} 1-0


[Site "https://www.chess.com"]

[Event "Titled Tuesday Blitz May 2 Early 2023"]
[White "Smietanska, Wiktoria"]
[Black "Vargas, Mauricio"]
[WhiteFideId "21869359"]
[BlackFideId "4404572"]
[WhiteElo "1995"]
[BlackElo "1998"]
[Result "1-0"]
[Round "04"]
[TimeControl "180+2"]
[Date "2023.05.02"]
[WhiteClock "0:01:00"]
[BlackClock "0:00:28"]

1. c4 {[%clk 0:03:00]}  e5 {[%clk 0:02:58]} 2. Nc3 {[%clk 0:03:00]}  Nc6 {[%clk 0:02:59]} 3. Nf3 {[%clk 0:03:01]}  f5 {[%clk 0:02:58]} 4. d4 {[%clk 0:03:01]}  e4 {[%clk 0:02:57]} 5. Ng5 {[%clk 0:02:53]}  h6 {[%clk 0:02:54]} 6. Nh3 {[%clk 0:02:52]}  g5 {[%clk 0:02:53]} 7. e3 {[%clk 0:02:49]}  Bg7 {[%clk 0:02:51]} 8. Qh5+ {[%clk 0:02:47]}  Kf8 {[%clk 0:02:49]} 9. Nd5 {[%clk 0:02:24]}  Nf6 {[%clk 0:02:44]} 10. Nxf6 {[%clk 0:02:23]}  Bxf6 {[%clk 0:02:43]} 11. Be2 {[%clk 0:02:14]}  Kg7 {[%clk 0:02:42]} 12. f3 {[%clk 0:02:07]}  Nb4 {[%clk 0:02:28]} 13. O-O {[%clk 0:01:49]}  Nc2 {[%clk 0:02:26]} 14. Rb1 {[%clk 0:01:47]}  d6 {[%clk 0:02:24]} 15. fxe4 {[%clk 0:01:44]}  fxe4 {[%clk 0:02:21]} 16. Nf2 {[%clk 0:01:42]}  Be6 {[%clk 0:02:14]} 17. Nxe4 {[%clk 0:01:33]}  Bf7 {[%clk 0:02:11]} 18. Qf3 {[%clk 0:01:31]}  Nxd4 {[%clk 0:01:15]} 19. exd4 {[%clk 0:01:14]}  Bxd4+ {[%clk 0:01:14]} 20. Be3 {[%clk 0:01:12]}  Bxe3+ {[%clk 0:01:13]} 21. Qxe3 {[%clk 0:01:10]}  Be6 {[%clk 0:01:10]} 22. Qd4+ {[%clk 0:01:09]}  Kh7 {[%clk 0:00:47]} 23. Nf6+ {[%clk 0:01:06]}  Kg6 {[%clk 0:00:46]} 24. Bh5+ {[%clk 0:01:02]}  Kg7 {[%clk 0:00:44]} 25. Ne8+ {[%clk 0:01:02]}  Kg8 {[%clk 0:00:28]} 26. Qg7# {[%clk 0:01:00]} 1-0


[Site "https://www.chess.com"]

[Event "Titled Tuesday Blitz May 2 Early 2023"]
[White "Gupta, Abhijeet"]
[Black "Nakamura, Hikaru"]
[WhiteFideId "5010608"]
[BlackFideId "2016192"]
[WhiteElo "2528"]
[BlackElo "2885"]
[Result "1/2-1/2"]
[Round "05"]
[TimeControl "180+2"]
[Date "2023.05.02"]
[WhiteClock "0:01:31"]
[BlackClock "0:01:05"]

1. d4 {[%clk 0:02:59]}  Nf6 {[%clk 0:02:57]} 2. Nf3 {[%clk 0:02:58]}  e6 {[%clk 0:02:56]} 3. Bf4 {[%clk 0:02:58]}  c5 {[%clk 0:02:50]} 4. e3 {[%clk 0:02:57]}  d5 {[%clk 0:02:40]} 5. c3 {[%clk 0:02:56]}  Nbd7 {[%clk 0:02:18]} 6. Nbd2 {[%clk 0:02:50]}  Nh5 {[%clk 0:02:16]} 7. Bg5 {[%clk 0:02:45]}  Be7 {[%clk 0:02:16]} 8. Bxe7 {[%clk 0:02:40]}  Qxe7 {[%clk 0:02:17]} 9. g4 {[%clk 0:02:34]}  Nhf6 {[%clk 0:02:17]} 10. g5 {[%clk 0:02:35]}  Ng8 {[%clk 0:02:09]} 11. Bb5 {[%clk 0:02:27]}  a6 {[%clk 0:02:07]} 12. Bxd7+ {[%clk 0:02:23]}  Bxd7 {[%clk 0:02:07]} 13. Ne5 {[%clk 0:02:18]}  cxd4 {[%clk 0:02:03]} 14. cxd4 {[%clk 0:02:14]}  Qxg5 {[%clk 0:02:03]} 15. Nxd7 {[%clk 0:02:02]}  Kxd7 {[%clk 0:01:59]} 16. Qb3 {[%clk 0:02:02]}  Rb8 {[%clk 0:01:55]} 17. Nf3 {[%clk 0:01:49]}  Qd8 {[%clk 0:01:54]} 18. Ne5+ {[%clk 0:01:47]}  Ke7 {[%clk 0:01:39]} 19. Qb4+ {[%clk 0:01:42]}  Ke8 {[%clk 0:01:36]} 20. Qa4+ {[%clk 0:01:38]}  Ke7 {[%clk 0:01:31]} 21. Qb4+ {[%clk 0:01:34]}  Ke8 {[%clk 0:01:24]} 22. Qa4+ {[%clk 0:01:33]}  Ke7 {[%clk 0:01:05]} 23. Qb4+ {[%clk 0:01:31]} 1/2-1/2


[Site "https://www.chess.com"]

[Event "Titled Tuesday Blitz May 2 Early 2023"]
[White "Van Foreest, Jorden"]
[Black "Fedoseev, Vladimir"]
[WhiteFideId "1039784"]
[BlackFideId "24130737"]
[WhiteElo "2633"]
[BlackElo "2752"]
[Result "0-1"]
[Round "05"]
[TimeControl "180+2"]
[Date "2023.05.02"]
[WhiteClock "0:00:32"]
[BlackClock "0:01:23"]

1. e4 {[%clk 0:02:59]}  c5 {[%clk 0:02:59]} 2. Nf3 {[%clk 0:02:59]}  Nc6 {[%clk 0:02:56]} 3. d4 {[%clk 0:02:55]}  cxd4 {[%clk 0:02:55]} 4. Nxd4 {[%clk 0:02:55]}  e5 {[%clk 0:02:56]} 5. Nb5 {[%clk 0:02:53]}  d6 {[%clk 0:02:56]} 6. c4 {[%clk 0:02:52]}  g6 {[%clk 0:02:56]} 7. N1c3 {[%clk 0:02:45]}  a6 {[%clk 0:02:55]} 8. Na3 {[%clk 0:02:45]}  Bg7 {[%clk 0:02:54]} 9. Be2 {[%clk 0:02:40]}  Be6 {[%clk 0:02:53]} 10. O-O {[%clk 0:02:38]}  Nd4 {[%clk 0:02:52]} 11. Be3 {[%clk 0:02:36]}  Ne7 {[%clk 0:02:51]} 12. Nc2 {[%clk 0:02:33]}  Nec6 {[%clk 0:02:48]} 13. Nxd4 {[%clk 0:02:30]}  exd4 {[%clk 0:02:47]} 14. Bd2 {[%clk 0:02:02]}  dxc3 {[%clk 0:02:47]} 15. Bxc3 {[%clk 0:02:02]}  Bxc3 {[%clk 0:02:46]} 16. bxc3 {[%clk 0:02:03]}  O-O {[%clk 0:02:43]} 17. f4 {[%clk 0:02:02]}  f6 {[%clk 0:02:41]} 18. Rb1 {[%clk 0:02:00]}  Qc7 {[%clk 0:02:39]} 19. h4 {[%clk 0:01:58]}  Na5 {[%clk 0:02:29]} 20. h5 {[%clk 0:01:56]}  Bxc4 {[%clk 0:02:26]} 21. hxg6 {[%clk 0:01:51]}  hxg6 {[%clk 0:02:25]} 22. Bxc4+ {[%clk 0:01:50]}  Nxc4 {[%clk 0:02:25]} 23. Rf3 {[%clk 0:01:25]}  Qc5+ {[%clk 0:02:20]} 24. Kh2 {[%clk 0:01:22]}  Rf7 {[%clk 0:02:16]} 25. Rh3 {[%clk 0:01:22]}  Kg7 {[%clk 0:02:09]} 26. Qg4 {[%clk 0:01:21]}  Rh8 {[%clk 0:02:06]} 27. Rg1 {[%clk 0:01:00]}  Nd2 {[%clk 0:01:35]} 28. e5 {[%clk 0:00:46]}  dxe5 {[%clk 0:01:29]} 29. Rd1 {[%clk 0:00:32]}  Rxh3+ {[%clk 0:01:24]} 30. Kxh3 {[%clk 0:00:32]}  Qe3+ {[%clk 0:01:23]} 0-1


[Site "https://www.chess.com"]

[Event "Titled Tuesday Blitz May 2 Early 2023"]
[White "Firouzja, Alireza"]
[Black "Chigaev, Maksim"]
[WhiteFideId "12573981"]
[BlackFideId "4108116"]
[WhiteElo "2904"]
[BlackElo "2547"]
[Result "1-0"]
[Round "05"]
[TimeControl "180+2"]
[Date "2023.05.02"]
[WhiteClock "0:00:08"]
[BlackClock "0:00:04"]

1. d4 {[%clk 0:02:54]}  Nf6 {[%clk 0:02:59]} 2. Bg5 {[%clk 0:02:52]}  g6 {[%clk 0:02:59]} 3. Bxf6 {[%clk 0:02:48]}  exf6 {[%clk 0:03:00]} 4. e3 {[%clk 0:02:47]}  d5 {[%clk 0:03:00]} 5. g3 {[%clk 0:02:47]}  h5 {[%clk 0:02:59]} 6. Bg2 {[%clk 0:02:41]}  h4 {[%clk 0:02:56]} 7. Ne2 {[%clk 0:02:41]}  c6 {[%clk 0:02:55]} 8. Nd2 {[%clk 0:02:40]}  Bg4 {[%clk 0:02:50]} 9. c3 {[%clk 0:02:16]}  Nd7 {[%clk 0:02:45]} 10. Qb3 {[%clk 0:02:11]}  Rb8 {[%clk 0:02:41]} 11. c4 {[%clk 0:02:07]}  dxc4 {[%clk 0:02:27]} 12. Nxc4 {[%clk 0:01:59]}  h3 {[%clk 0:01:56]} 13. Be4 {[%clk 0:01:58]}  f5 {[%clk 0:01:41]} 14. Bd3 {[%clk 0:01:58]}  b5 {[%clk 0:01:30]} 15. Nd2 {[%clk 0:01:55]}  Be7 {[%clk 0:01:10]} 16. f3 {[%clk 0:01:51]}  Bh5 {[%clk 0:01:09]} 17. O-O {[%clk 0:01:45]}  c5 {[%clk 0:01:03]} 18. Bxb5 {[%clk 0:01:36]}  O-O {[%clk 0:01:00]} 19. Qd3 {[%clk 0:01:36]}  Ne5 {[%clk 0:00:45]} 20. dxe5 {[%clk 0:01:34]}  Rxb5 {[%clk 0:00:45]} 21. Qxd8 {[%clk 0:01:26]}  Rxd8 {[%clk 0:00:46]} 22. Nc4 {[%clk 0:01:26]}  Bg5 {[%clk 0:00:35]} 23. Kf2 {[%clk 0:01:25]}  Rb4 {[%clk 0:00:27]} 24. b3 {[%clk 0:01:25]}  Rxc4 {[%clk 0:00:23]} 25. bxc4 {[%clk 0:01:26]}  Rd3 {[%clk 0:00:24]} 26. Nf4 {[%clk 0:01:01]}  Rd2+ {[%clk 0:00:22]} 27. Kg1 {[%clk 0:01:01]}  Bxf4 {[%clk 0:00:22]} 28. exf4 {[%clk 0:01:02]}  Rg2+ {[%clk 0:00:22]} 29. Kh1 {[%clk 0:01:03]}  Rc2 {[%clk 0:00:23]} 30. Rab1 {[%clk 0:00:54]}  Rxc4 {[%clk 0:00:18]} 31. Rbc1 {[%clk 0:00:47]}  Ra4 {[%clk 0:00:15]} 32. Rf2 {[%clk 0:00:47]}  Ra3 {[%clk 0:00:13]} 33. Rxc5 {[%clk 0:00:38]}  Bxf3+ {[%clk 0:00:13]} 34. Kg1 {[%clk 0:00:39]}  Be4 {[%clk 0:00:12]} 35. Rd2 {[%clk 0:00:38]}  g5 {[%clk 0:00:08]} 36. fxg5 {[%clk 0:00:37]}  Kg7 {[%clk 0:00:08]} 37. Rb5 {[%clk 0:00:24]}  Kg6 {[%clk 0:00:08]} 38. Rb3 {[%clk 0:00:24]}  Ra5 {[%clk 0:00:09]} 39. Kf2 {[%clk 0:00:20]}  Rxe5 {[%clk 0:00:09]} 40. Rb8 {[%clk 0:00:21]}  Kxg5 {[%clk 0:00:08]} 41. Rh8 {[%clk 0:00:19]}  Bg2 {[%clk 0:00:08]} 42. Rg8+ {[%clk 0:00:18]}  Kf6 {[%clk 0:00:08]} 43. Rh8 {[%clk 0:00:16]}  Rc5 {[%clk 0:00:06]} 44. Rh6+ {[%clk 0:00:15]}  Kg5 {[%clk 0:00:06]} 45. Rhd6 {[%clk 0:00:16]}  f6 {[%clk 0:00:06]} 46. Rd8 {[%clk 0:00:15]}  Rc1 {[%clk 0:00:06]} 47. Rg8+ {[%clk 0:00:15]}  Kh6 {[%clk 0:00:07]} 48. g4 {[%clk 0:00:12]}  Rf1+ {[%clk 0:00:05]} 49. Kg3 {[%clk 0:00:12]}  f4+ {[%clk 0:00:05]} 50. Kh4 {[%clk 0:00:11]}  Re1 {[%clk 0:00:03]} 51. Rd6 {[%clk 0:00:08]}  Kh7 {[%clk 0:00:03]} 52. Rf8 {[%clk 0:00:08]}  Kg7 {[%clk 0:00:03]} 53. Rdxf6 {[%clk 0:00:08]}  Re7 {[%clk 0:00:03]} 54. Rxf4 {[%clk 0:00:08]}  Rb7 {[%clk 0:00:04]} 55. R8f5 {[%clk 0:00:08]} 1-0


[Site "https://www.chess.com"]

[Event "Titled Tuesday Blitz May 2 Early 2023"]
[White "Ter-Sahakyan, Samvel"]
[Black "Andreikin, Dmitry"]
[WhiteFideId "13302531"]
[BlackFideId "4158814"]
[WhiteElo "2566"]
[BlackElo "2736"]
[Result "1/2-1/2"]
[Round "05"]
[TimeControl "180+2"]
[Date "2023.05.02"]
[WhiteClock "0:01:12"]
[BlackClock "0:00:57"]

1. d4 {[%clk 0:03:00]}  Nf6 {[%clk 0:02:57]} 2. Nf3 {[%clk 0:02:59]}  d5 {[%clk 0:02:53]} 3. c3 {[%clk 0:02:59]}  Bf5 {[%clk 0:02:51]} 4. Qb3 {[%clk 0:02:58]}  Nbd7 {[%clk 0:02:51]} 5. Bf4 {[%clk 0:02:52]}  e6 {[%clk 0:02:50]} 6. e3 {[%clk 0:02:48]}  Bd6 {[%clk 0:02:48]} 7. Bxd6 {[%clk 0:02:38]}  cxd6 {[%clk 0:02:48]} 8. Be2 {[%clk 0:02:37]}  O-O {[%clk 0:02:48]} 9. O-O {[%clk 0:02:37]}  e5 {[%clk 0:02:45]} 10. h3 {[%clk 0:02:23]}  Re8 {[%clk 0:02:39]} 11. a4 {[%clk 0:02:21]}  Nf8 {[%clk 0:02:21]} 12. Nbd2 {[%clk 0:02:11]}  Ng6 {[%clk 0:02:17]} 13. Rfc1 {[%clk 0:01:57]}  e4 {[%clk 0:02:15]} 14. Ne1 {[%clk 0:01:55]}  Nh4 {[%clk 0:02:16]} 15. Nf1 {[%clk 0:01:49]}  Qd7 {[%clk 0:01:50]} 16. Ng3 {[%clk 0:01:49]}  Bxh3 {[%clk 0:01:38]} 17. gxh3 {[%clk 0:01:45]}  Qxh3 {[%clk 0:01:39]} 18. Bf1 {[%clk 0:01:41]}  Qg4 {[%clk 0:01:39]} 19. Qd1 {[%clk 0:01:28]}  Nf3+ {[%clk 0:01:39]} 20. Kg2 {[%clk 0:01:26]}  Nh4+ {[%clk 0:01:12]} 21. Kg1 {[%clk 0:01:26]}  Nf3+ {[%clk 0:01:02]} 22. Kg2 {[%clk 0:01:18]}  Nh4+ {[%clk 0:00:57]} 23. Kg1 {[%clk 0:01:12]} 1/2-1/2


[Site "https://www.chess.com"]